Workbook

Sheet cie
A1: Lambda[nm] | B1: lambda [m] | C1: x | D1: y | E1: z | F1: B | G1: h | H1: c | I1: k | J1: T | L1: X * B | M1: Y*B | N1: Z*B | P1: X | Q1: Y | R1: Z | S1: x | T1: y | U1: z
A2: 380 | B2: =A2/(10^9) -> 3.8e-07 | C2: 0.0014 | D2: 0 | E2: 0.0065 | F2: =(2*$G$2*$H$2^2)/(B2^5)*1/(EXP($G$2*$H$2/(B2*$I$2*$J$2))-1) -> 6.74172083e+13 | G2: =6.62607015 * 10^-34 -> 6.62607015e-34 | H2: 300000000 | I2: =1.3806*10^-23 -> 1.3806e-23 | J2: 7000 | L2: =C2*F2 -> 9.438409162e+10 | M2: =D2*$F2 -> 0 | N2: =E2*$F2 -> 4.38211854e+11 | P2: =SUM(L2:L82) -> 1164324332331574 | Q2: =SUM(M2:M82) -> 1.20294852e+15 | R2: =SUM(N2:N82) -> 1.432009434e+15 | S2: =P2/($P$2+$Q$2+$R$2) -> 0.3064590216 | T2: =Q2/($P$2+$Q$2+$R$2) -> 0.3166252017 | U2: =R2/($P$2+$Q$2+$R$2) -> 0.3769157767
A3: 385 | B3: =A3/(10^9) -> 3.85e-07 | C3: 0.0022 | D3: 0.0001 | E3: 0.0105 | F3: =(2*$G$2*$H$2^2)/(B3^5)*1/(EXP($G$2*$H$2/(B3*$I$2*$J$2))-1) -> 6.777295115e+13 | L3: =C3*F3 -> 1.491004925e+11 | M3: =D3*$F3 -> 6777295115 | N3: =E3*$F3 -> 7.116159871e+11
A4: 390 | B4: 3.9e-07 | C4: 0.0042 | D4: 0.0001 | E4: 0.0201 | F4: 6.806625102e+13 | L4: 2.858782543e+11 | M4: =D4*$F4 -> 6806625102 | N4: 1.368131646e+12
A5: 395 | B5: 3.95e-07 | C5: 0.0076 | D5: 0.0002 | E5: 0.0362 | F5: 6.829950004e+13 | L5: 5.190762003e+11 | M5: 1.365990001e+10 | N5: 2.472441902e+12
A6: 400 | B6: 4e-07 | C6: 0.0143 | D6: 0.0004 | E6: 0.0679 | F6: 6.847511906e+13 | L6: 9.791942026e+11 | M6: 2.739004762e+10 | N6: 4.649460584e+12
A7: 405 | B7: 4.05e-07 | C7: 0.0232 | D7: 0.0006 | E7: 0.1102 | F7: 6.859554281e+13 | L7: 1.591416593e+12 | M7: 4.115732569e+10 | N7: 7.559228818e+12
A8: 410 | B8: 4.1e-07 | C8: 0.0435 | D8: 0.0012 | E8: 0.2074 | F8: 6.866320675e+13 | L8: 2.986849494e+12 | M8: 8.23958481e+10 | N8: 1.424074908e+13
A9: 415 | B9: 4.15e-07 | C9: 0.0776 | D9: 0.0022 | E9: 0.3713 | F9: 6.868053539e+13 | L9: 5.329609546e+12 | M9: 1.510971779e+11 | N9: 2.550108279e+13 | P9: Matica pre RGB | T9: Inverse Matrix "=MINVERSE(P10:R12)" | X9: xyz | Z9: rgb
A10: 420 | B10: 4.2e-07 | C10: 0.1344 | D10: 0.004 | E10: 0.6456 | F10: 6.86499321e+13 | L10: 9.226550875e+12 | M10: 2.745997284e+11 | N10: 4.432039617e+13 | P10: 0.67 | Q10: 0.21 | R10: 0.14 | T10: =MINVERSE(P10:R12) -> 1.730088496 | U10: -0.482300885 | V10: -0.2610619469 | W10: x | X10: =S2 -> 0.3064590216 | Y10: = | Z10: =MMULT(T10:V12,X10:X12) -> 0.2790942462
A11: 425 | B11: 4.25e-07 | C11: 0.2148 | D11: 0.0073 | E11: 1.0391 | F11: 6.85737702e+13 | L11: 1.472964584e+13 | M11: 5.005885225e+11 | N11: 7.125500462e+13 | P11: 0.33 | Q11: 0.71 | R11: 0.08 | T11: -0.8135271808 | U11: 1.6517067 | V11: -0.02338811631 | X11: =T2 -> 0.3166252017 | Z11: 0.2648438732
A12: 430 | B12: 4.3e-07 | C12: 0.2839 | D12: 0.0116 | E12: 1.3856 | F12: 6.845438528e+13 | L12: 1.943419998e+13 | M12: 7.940708692e+11 | N12: 9.485039624e+13 | P12: =1-P10-P11 -> 0 | Q12: =1-Q10-Q11 -> 0.08 | R12: =1-R10-R11 -> 0.78 | T12: 0.08343868521 | U12: -0.1694058154 | V12: 1.284450063 | X12: =U2 -> 0.3769157767 | Z12: 0.4560618806
A13: 435 | B13: 4.35e-07 | C13: 0.3285 | D13: 0.0168 | E13: 1.623 | F13: 6.82940686e+13 | L13: 2.243460153e+13 | M13: 1.147340352e+12 | N13: 1.108412733e+14
A14: 440 | B14: 4.4e-07 | C14: 0.3483 | D14: 0.023 | E14: 1.7471 | F14: 6.809506155e+13 | L14: 2.371750994e+13 | M14: 1.566186416e+12 | N14: 1.18968882e+14
A15: 445 | B15: 4.45e-07 | C15: 0.3481 | D15: 0.0298 | E15: 1.7826 | F15: 6.785955101e+13 | L15: 2.362190971e+13 | M15: 2.02221462e+12 | N15: 1.209664356e+14 | P15: AK existuje hodnota v rgb < 0
A16: 450 | B16: 4.5e-07 | C16: 0.3362 | D16: 0.038 | E16: 1.7721 | F16: 6.75896655e+13 | L16: 2.272364554e+13 | M16: 2.568407289e+12 | N16: 1.197756462e+14 | P16: Odstanenie zapornych cisel
A17: 455 | B17: 4.55e-07 | C17: 0.3187 | D17: 0.048 | E17: 1.7441 | F17: 6.728747217e+13 | L17: 2.144451738e+13 | M17: 3.229798664e+12 | N17: 1.173560802e+14
A18: 460 | B18: 4.6e-07 | C18: 0.2908 | D18: 0.06 | E18: 1.6692 | F18: 6.695497438e+13 | L18: 1.947050655e+13 | M18: 4.017298463e+12 | N18: 1.117612432e+14 | P18: rgb | R18: - min rgb
A19: 465 | B19: 4.65e-07 | C19: 0.2511 | D19: 0.0739 | E19: 1.5281 | F19: 6.659410991e+13 | L19: 1.6721781e+13 | M19: 4.921304722e+12 | N19: 1.017624594e+14 | P19: =MMULT(_xlfn.ANCHORARRAY(T10),X10:X12) -> 0.2790942462 | Q19: + | S19: = | T19: =P19+$R$20 -> 0.01425037295
A20: 470 | B20: 4.7e-07 | C20: 0.1954 | D20: 0.091 | E20: 1.2876 | F20: 6.620674976e+13 | L20: 1.29367989e+13 | M20: 6.024814228e+12 | N20: 8.5247811e+13 | P20: 0.2648438732 | R20: =-MIN(P19:P21) -> -0.2648438732 | T20: =P20+$R$20 -> 0
A21: 475 | B21: 4.75e-07 | C21: 0.1421 | D21: 0.1126 | E21: 1.0419 | F21: 6.579469734e+13 | L21: 9.349426493e+12 | M21: 7.408482921e+12 | N21: 6.855149516e+13 | P21: 0.4560618806 | T21: 0.1912180074
A22: 480 | B22: 4.8e-07 | C22: 0.0956 | D22: 0.139 | E22: 0.813 | F22: 6.535968814e+13 | L22: 6.248386186e+12 | M22: 9.084996652e+12 | N22: 5.313742646e+13
A23: 485 | B23: 4.85e-07 | C23: 0.058 | D23: 0.1693 | E23: 0.6162 | F23: 6.490338975e+13 | L23: 3.764396605e+12 | M23: 1.098814388e+13 | N23: 3.999346876e+13
A24: 490 | B24: 4.9e-07 | C24: 0.032 | D24: 0.208 | E24: 0.4652 | F24: 6.442740219e+13 | L24: 2.06167687e+12 | M24: 1.340089966e+13 | N24: 2.99716275e+13
A25: 495 | B25: 4.95e-07 | C25: 0.0147 | D25: 0.2586 | E25: 0.3533 | F25: 6.393325858e+13 | L25: 9.398189011e+11 | M25: 1.653314067e+13 | N25: 2.258762026e+13 | Q25: Normalizovanie rgb - to sa robi vzdy
A26: 500 | B26: 5e-07 | C26: 0.0049 | D26: 0.323 | E26: 0.272 | F26: 6.342242595e+13 | L26: 3.107698871e+11 | M26: 2.048544358e+13 | N26: 1.725089986e+13
A27: 505 | B27: 5.05e-07 | C27: 0.0024 | D27: 0.4073 | E27: 0.2123 | F27: 6.289630634e+13 | L27: 1.509511352e+11 | M27: 2.561766557e+13 | N27: 1.335288584e+13 | R27: max rgb | T27: normalizovane rgb | W27: RGB | Y27: Vysledna farba
A28: 510 | B28: 5.1e-07 | C28: 0.0093 | D28: 0.503 | E28: 0.1582 | F28: 6.235623806e+13 | L28: 5.79913014e+11 | M28: 3.136518775e+13 | N28: 9.864756862e+12 | P28: =IF($R$20>0,T19,Z10) -> 0.2790942462 | Q28: / | S28: = | T28: =P28/$R$29 -> 0.6119657398 | W28: =T28*255 -> 156.0512637 | Y28: =myRGB(W28,W29,W30) -> 
A29: 515 | B29: 5.15e-07 | C29: 0.0291 | D29: 0.6082 | E29: 0.1117 | F29: 6.180349706e+13 | L29: 1.798481764e+12 | M29: 3.758888691e+13 | N29: 6.903450621e+12 | P29: =IF($R$20>0,T20,Z11) -> 0.2648438732 | R29: =MAX(P28:P30) -> 0.4560618806 | T29: =P29/$R$29 -> 0.5807191622 | W29: =T29*255 -> 148.0833864
A30: 520 | B30: 5.2e-07 | C30: 0.0633 | D30: 0.71 | E30: 0.0782 | F30: 6.123929842e+13 | L30: 3.87644759e+12 | M30: 4.347990188e+13 | N30: 4.788913136e+12 | P30: 0.4560618806 | T30: =P30/$R$29 -> 1 | W30: 255
A31: 525 | B31: 5.25e-07 | C31: 0.1096 | D31: 0.7932 | E31: 0.0573 | F31: 6.066479802e+13 | L31: 6.648861863e+12 | M31: 4.811931779e+13 | N31: 3.476092926e+12
A32: 530 | B32: 5.3e-07 | C32: 0.1655 | D32: 0.862 | E32: 0.0422 | F32: 6.008109416e+13 | L32: 9.943421084e+12 | M32: 5.178990317e+13 | N32: 2.535422174e+12
A33: 535 | B33: 5.35e-07 | C33: 0.2257 | D33: 0.9149 | E33: 0.0298 | F33: 5.948922937e+13 | L33: 1.342671907e+13 | M33: 5.442669595e+13 | N33: 1.772779035e+12
A34: 540 | B34: 5.4e-07 | C34: 0.2904 | D34: 0.954 | E34: 0.0203 | F34: 5.889019213e+13 | L34: 1.710171179e+13 | M34: 5.618124329e+13 | N34: 1.1954709e+12
A35: 545 | B35: 5.45e-07 | C35: 0.3597 | D35: 0.9803 | E35: 0.0134 | F35: 5.828491871e+13 | L35: 2.096508526e+13 | M35: 5.713670581e+13 | N35: 7.810179107e+11
A36: 550 | B36: 5.5e-07 | C36: 0.4334 | D36: 0.995 | E36: 0.0087 | F36: 5.767429502e+13 | L36: 2.499603946e+13 | M36: 5.738592355e+13 | N36: 5.017663667e+11
A37: 555 | B37: 5.55e-07 | C37: 0.5121 | D37: 1 | E37: 0.0057 | F37: 5.705915843e+13 | L37: 2.921999503e+13 | M37: 5.705915843e+13 | N37: 3.25237203e+11
A38: 560 | B38: 5.6e-07 | C38: 0.5945 | D38: 0.995 | E38: 0.0039 | F38: 5.644029957e+13 | L38: 3.355375809e+13 | M38: 5.615809807e+13 | N38: 2.201171683e+11
A39: 565 | B39: 5.65e-07 | C39: 0.6784 | D39: 0.9786 | E39: 0.0027 | F39: 5.581846419e+13 | L39: 3.786724611e+13 | M39: 5.462394906e+13 | N39: 1.507098533e+11
A40: 570 | B40: 5.7e-07 | C40: 0.7621 | D40: 0.952 | E40: 0.0021 | F40: 5.519435495e+13 | L40: 4.206361791e+13 | M40: 5.254502591e+13 | N40: 1.159081454e+11
A41: 575 | B41: 5.75e-07 | C41: 0.8425 | D41: 0.9154 | E41: 0.0018 | F41: 5.456863315e+13 | L41: 4.597407343e+13 | M41: 4.995212679e+13 | N41: 9.822353967e+10
A42: 580 | B42: 5.8e-07 | C42: 0.9163 | D42: 0.87 | E42: 0.0017 | F42: 5.394192051e+13 | L42: 4.942698177e+13 | M42: 4.692947085e+13 | N42: 9.170126487e+10
A43: 585 | B43: 5.85e-07 | C43: 0.9786 | D43: 0.8163 | E43: 0.0014 | F43: 5.331480087e+13 | L43: 5.217386413e+13 | M43: 4.352087195e+13 | N43: 7.464072122e+10
A44: 590 | B44: 5.9e-07 | C44: 1.0263 | D44: 0.757 | E44: 0.0011 | F44: 5.268782183e+13 | L44: 5.407351154e+13 | M44: 3.988468112e+13 | N44: 5.795660401e+10
A45: 595 | B45: 5.95e-07 | C45: 1.0567 | D45: 0.6949 | E45: 0.001 | F45: 5.206149638e+13 | L45: 5.501338323e+13 | M45: 3.617753384e+13 | N45: 5.206149638e+10
A46: 600 | B46: 6e-07 | C46: 1.0622 | D46: 0.631 | E46: 0.0008 | F46: 5.143630451e+13 | L46: 5.463564265e+13 | M46: 3.245630815e+13 | N46: 4.114904361e+10
A47: 605 | B47: 6.05e-07 | C47: 1.0456 | D47: 0.5668 | E47: 0.0006 | F47: 5.08126947e+13 | L47: 5.312975358e+13 | M47: 2.880063536e+13 | N47: 3.048761682e+10
A48: 610 | B48: 6.1e-07 | C48: 1.0026 | D48: 0.503 | E48: 0.0003 | F48: 5.019108542e+13 | L48: 5.032158224e+13 | M48: 2.524611596e+13 | N48: 1.505732562e+10
A49: 615 | B49: 6.15e-07 | C49: 0.9384 | D49: 0.4412 | E49: 0.0002 | F49: 4.957186657e+13 | L49: 4.651823959e+13 | M49: 2.187110753e+13 | N49: 9914373314
A50: 620 | B50: 6.2e-07 | C50: 0.8544 | D50: 0.381 | E50: 0.0002 | F50: 4.895540088e+13 | L50: 4.182749451e+13 | M50: 1.865200774e+13 | N50: 9791080176
A51: 625 | B51: 6.25e-07 | C51: 0.7514 | D51: 0.321 | E51: 0.0001 | F51: 4.834202523e+13 | L51: 3.632419776e+13 | M51: 1.55177901e+13 | N51: 4834202523
A52: 630 | B52: 6.3e-07 | C52: 0.6424 | D52: 0.265 | E52: 0 | F52: 4.773205195e+13 | L52: 3.066307017e+13 | M52: 1.264899377e+13 | N52: 0
A53: 635 | B53: 6.35e-07 | C53: 0.5419 | D53: 0.217 | E53: 0 | F53: 4.712577007e+13 | L53: 2.55374548e+13 | M53: 1.022629211e+13 | N53: 0
A54: 640 | B54: 6.4e-07 | C54: 0.4479 | D54: 0.175 | E54: 0 | F54: 4.65234465e+13 | L54: 2.083785169e+13 | M54: 8.141603137e+12 | N54: 0
A55: 645 | B55: 6.45e-07 | C55: 0.3608 | D55: 0.1382 | E55: 0 | F55: 4.592532718e+13 | L55: 1.656985805e+13 | M55: 6.346880216e+12 | N55: 0
A56: 650 | B56: 6.5e-07 | C56: 0.2835 | D56: 0.107 | E56: 0 | F56: 4.533163819e+13 | L56: 1.285151943e+13 | M56: 4.850485287e+12 | N56: 0
A57: 655 | B57: 6.55e-07 | C57: 0.2187 | D57: 0.0816 | E57: 0 | F57: 4.474258683e+13 | L57: 9.785203739e+12 | M57: 3.650995085e+12 | N57: 0
A58: 660 | B58: 6.6e-07 | C58: 0.1649 | D58: 0.061 | E58: 0 | F58: 4.415836255e+13 | L58: 7.281713985e+12 | M58: 2.693660116e+12 | N58: 0
A59: 665 | B59: 6.65e-07 | C59: 0.1212 | D59: 0.0446 | E59: 0 | F59: 4.357913802e+13 | L59: 5.281791528e+12 | M59: 1.943629556e+12 | N59: 0
A60: 670 | B60: 6.7e-07 | C60: 0.0874 | D60: 0.032 | E60: 0 | F60: 4.300506998e+13 | L60: 3.758643116e+12 | M60: 1.376162239e+12 | N60: 0
A61: 675 | B61: 6.75e-07 | C61: 0.0636 | D61: 0.0232 | E61: 0 | F61: 4.243630016e+13 | L61: 2.69894869e+12 | M61: 9.845221638e+11 | N61: 0
A62: 680 | B62: 6.8e-07 | C62: 0.0468 | D62: 0.017 | E62: 0 | F62: 4.187295611e+13 | L62: 1.959654346e+12 | M62: 7.118402539e+11 | N62: 0
A63: 685 | B63: 6.85e-07 | C63: 0.0329 | D63: 0.0119 | E63: 0 | F63: 4.131515202e+13 | L63: 1.359268501e+12 | M63: 4.91650309e+11 | N63: 0
A64: 690 | B64: 6.9e-07 | C64: 0.0227 | D64: 0.0082 | E64: 0 | F64: 4.076298945e+13 | L64: 9.253198606e+11 | M64: 3.342565135e+11 | N64: 0
A65: 695 | B65: 6.95e-07 | C65: 0.0158 | D65: 0.0057 | E65: 0 | F65: 4.021655814e+13 | L65: 6.354216186e+11 | M65: 2.292343814e+11 | N65: 0
A66: 700 | B66: 7e-07 | C66: 0.0114 | D66: 0.0041 | E66: 0 | F66: 3.967593661e+13 | L66: 4.523056774e+11 | M66: 1.626713401e+11 | N66: 0
A67: 705 | B67: =A67/(10^9) -> 7.05e-07 | C67: 0.0081 | D67: 0.0029 | E67: 0 | F67: =(2*$G$2*$H$2^2)/(B67^5)*1/(EXP($G$2*$H$2/(B67*$I$2*$J$2))-1) -> 3.91411929e+13 | L67: =C67*F67 -> 3.170436625e+11 | M67: 1.135094594e+11 | N67: =E67*$F67 -> 0
A68: 710 | B68: 7.1e-07 | C68: 0.0058 | D68: 0.0021 | E68: 0 | F68: 3.861238517e+13 | L68: 2.23951834e+11 | M68: =D68*$F68 -> 8.108600886e+10 | N68: 0
A69: 715 | B69: 7.15e-07 | C69: 0.0041 | D69: 0.0015 | E69: 0 | F69: 3.80895623e+13 | L69: 1.561672054e+11 | M69: 5.713434345e+10 | N69: 0
A70: 720 | B70: 7.2e-07 | C70: 0.0029 | D70: 0.001 | E70: 0 | F70: 3.757276447e+13 | L70: 1.08961017e+11 | M70: 3.757276447e+10 | N70: 0
A71: 725 | B71: 7.25e-07 | C71: 0.002 | D71: 0.0007 | E71: 0 | F71: 3.70620237e+13 | L71: 7.412404739e+10 | M71: 2.594341659e+10 | N71: 0
A72: 730 | B72: 7.3e-07 | C72: 0.0014 | D72: 0.0005 | E72: 0 | F72: 3.655736435e+13 | L72: 5.118031009e+10 | M72: 1.827868218e+10 | N72: 0
A73: 735 | B73: 7.35e-07 | C73: 0.001 | D73: 0.0004 | E73: 0 | F73: 3.605880365e+13 | L73: 3.605880365e+10 | M73: 1.442352146e+10 | N73: 0
A74: 740 | B74: 7.4e-07 | C74: 0.0007 | D74: 0.0002 | E74: 0 | F74: 3.556635211e+13 | L74: 2.489644648e+10 | M74: 7113270422 | N74: 0
A75: 745 | B75: 7.45e-07 | C75: 0.0005 | D75: 0.0002 | E75: 0 | F75: 3.508001401e+13 | L75: 1.7540007e+10 | M75: 7016002801 | N75: 0
A76: 750 | B76: 7.5e-07 | C76: 0.0003 | D76: 0.0001 | E76: 0 | F76: 3.459978777e+13 | L76: 1.037993633e+10 | M76: 3459978777 | N76: 0
A77: 755 | B77: 7.55e-07 | C77: 0.0002 | D77: 0.0001 | E77: 0 | F77: 3.412566638e+13 | L77: 6825133276 | M77: 3412566638 | N77: 0
A78: 760 | B78: 7.6e-07 | C78: 0.0002 | D78: 0.0001 | E78: 0 | F78: 3.365763778e+13 | L78: 6731527555 | M78: 3365763778 | N78: 0
A79: 765 | B79: 7.65e-07 | C79: 0.0001 | D79: 0 | E79: 0 | F79: 3.319568516e+13 | L79: 3319568516 | M79: 0 | N79: 0
A80: 770 | B80: 7.7e-07 | C80: 0.0001 | D80: 0 | E80: 0 | F80: 3.273978737e+13 | L80: 3273978737 | M80: 0 | N80: 0
A81: 775 | B81: 7.75e-07 | C81: 0.0001 | D81: 0 | E81: 0 | F81: 3.228991918e+13 | L81: 3228991918 | M81: 0 | N81: 0
A82: 780 | B82: 7.8e-07 | C82: 0 | D82: 0 | E82: 0 | F82: 3.184605161e+13 | L82: 0 | M82: 0 | N82: 0
